Cogmind - Beta 13 @@@ ROGUE MODE // 2024.04.13 @ 21:07:08 Player: Naiya55 Result: Destroyed by D-53 Grenadier with Mini Grenade Launcher Performance ------------- Evolutions (0) 0 Regions Visited (2) 400 Robots Destroyed (28) 140 Value Destroyed (496) 496 Prototype IDs (2) 40 Alien Tech Used (0) 0 Bonus (0) 0 TOTAL SCORE: 1076 Bonus ------- None Cogmind --------- Core Integrity 0/250 Matter 300/300 Energy 100/100 System Corruption 0% Temperature Cool (0) Movement Treading (160) Location -10/Mines Parts ------- > --- POWER (1) -------- (None) > --- PROPULSION (2) --- Light Treads Light Treads > --- UTILITY (2) ------ Large Storage Unit Targeting Computer > --- WEAPON (2) ------- Light Cannon > --- INVENTORY (15) --- Light Ion Engine Light Nuclear Core Light Treads Light Treads Light Treads Improved Heat Sink High-capacity Storage Unit Targeting Computer Light Armor Plating Light Armor Plating Assault Rifle Light Assault Rifle Light Assault Rifle Heavy Assault Rifle Grenade Launcher Peak State ------------ > --- POWER ------------ Improved Ion Engine > --- PROPULSION ------- Light Treads Light Treads > --- UTILITY ---------- Large Storage Unit Targeting Computer > --- WEAPON ----------- Assault Rifle Light Cannon > --- INVENTORY -------- Light Ion Engine Light Nuclear Core Light Treads Light Treads Light Treads Improved Heat Sink High-capacity Storage Unit Targeting Computer Light Armor Plating Light Armor Plating Assault Rifle Light Assault Rifle Light Assault Rifle Heavy Assault Rifle Grenade Launcher [Rating: 10] Favorites ----------- Power Light Ion Engine Engine Light Ion Engine Propulsion Light Treads Treads Light Treads Utility Targeting Computer Storage Large Storage Unit Processor Targeting Computer Weapon Light Cannon Energy Gun Medium Laser Ballistic Gun Light Assault Rifle Ballistic Cannon Light Cannon Launcher Grenade Launcher Build | -11 -10 -10 ------- Run | Yrd Mat Min Slots Evolved . | . . . Power . | . . . Propulsion . | . . . Utility . | . . . Weapon . | . . . Parts Attached 18 | 6 8 4 Power 2 | 1 . 1 Engine 2 | 1 . 1 Core . | . . . Reactor . | . . . Propulsion 4 | 2 . 2 Treads 4 | 2 . 2 Leg . | . . . Wheel . | . . . Hover . | . . . Flight . | . . . Utility 3 | 1 2 . Device . | . . . Storage 2 | 1 1 . Processor 1 | . 1 . Hackware . | . . . Protection . | . . . Artifact . | . . . Weapon 9 | 2 6 1 Energy Gun 1 | 1 . . Energy Cannon . | . . . Ballistic Gun 4 | 1 2 1 Ballistic Cannon 2 | . 2 . Launcher 2 | . 2 . Special Weapon . | . . . Impact Weapon . | . . . Slashing Weapon . | . . . Piercing Weapon . | . . . Special Melee Weapon . | . . . Unidentified Prototypes . | . . . Parts Lost 2 | . . 2 Power 1 | . . 1 Propulsion . | . . . Utility . | . . . Weapon 1 | . . 1 Highest Loss Streak 2 | . . 2 To Critical Strikes . | . . . Average Slot Usage (%) 99 | . 99 99 Engine 14 | . 14 14 Treads 28 | . 28 28 Storage 14 | . 14 14 Processor 13 | . 13 14 Ballistic Gun 13 | . 13 13 Ballistic Cannon 12 | . 11 14 Launcher 1 | . 2 . Naked Turns . | . . . Heaviest Build 32 | 11 27 32 Greatest Support 40 | 40 40 40 Greatest Overweight (x) . | . . . Average Overweight (x) . | . . . Largest Inventory Capacity 15 | 8 15 15 Average Capacity 13 | 7 13 15 Most Carried 15 | 4 15 15 Average Carried 10 | 2 9 14 Final Capacity 15 | 8 15 15 Final Carried 15 | 4 15 15 Class Distribution -------------------- 100% | Mutant Dominant Class ---------------- Mutant | -10/Materials Mutant | -10/Mines Resources | -11 -10 -10 ----------- Run | Yrd Mat Min Matter Collected 647 | 195 330 122 Remotely . | . . . Salvage Created 594 | 28 358 208 Parts 56 | 5 36 15 Haulers Intercepted . | . . . Recyclers Shooed 3 | 1 2 . Parts Field Recycled . | . . . Retrieved Matter . | . . . Parts Self-Destructed . | . . . Prevented . | . . . Kills | -11 -10 -10 ------- Run | Yrd Mat Min Combat Hostiles Destroyed 20 | . 13 7 Guns 6 | . 3 3 Cannons 9 | . 5 4 AOE 5 | . 5 . Classes Destroyed 6 | 1 5 . Worker 2 | 2 . . Recycler 2 | . 2 . Operator 1 | . 1 . Watcher 3 | . 3 . Swarmer 12 | . 9 3 Grunt 8 | . 4 4 Best Kill Streak 4 | 2 4 2 Combat Bots Only 3 | . 3 2 Max Kills in Single Turn 2 | 1 2 1 Gunslinging . | . . . Exploded 2 | . 2 . Melee . | . . . Uniques/NPCs Destroyed . | . . . Combat | -11 -10 -10 -------- Run | Yrd Mat Min Hostile Shots Fired 81 | . 53 28 Missed 14 | . 10 4 Damage Taken 1026 | . 469 557 Core 254 | . 97 157 Absorbed by Shields . | . . . Core Remaining (%) 100 | 100 . . Volleys Fired 53 | 5 36 12 Largest 2 | 2 2 2 Hottest 70 | 70 55 55 Shots Fired 103 | 10 69 24 Gun 55 | 10 33 12 Cannon 45 | . 33 12 Launcher 3 | . 3 . Special . | . . . Kinetic 95 | 5 66 24 Thermal 5 | 5 . . Explosive 3 | . 3 . Electromagnetic . | . . . Robot Hit Streak 12 | 4 9 12 Robot Miss Streak 3 | 3 2 2 Penetration Max . | . . . Secondary Targets . | . . . Shots Hit Robots 67 | 5 45 17 Core Hits 35 | 3 22 10 Critical Kills . | . . . Critical Parts Destroyed . | . . . Critical Strikes 3 | . 2 1 Blast 3 | . 2 1 Melee Attacks . | . . . Impact . | . . . Slashing . | . . . Piercing . | . . . Sneak Attacks . | . . . Combat Hostiles . | . . . Follow-up Attacks . | . . . Damage Inflicted 1248 | 54 925 269 Guns 339 | 54 148 137 Cannons 581 | . 449 132 Explosions 326 | . 326 . Melee . | . . . Ramming 2 | . 2 . Kinetic 882 | 16 597 269 Thermal 38 | 38 . . Explosive 326 | . 326 . Electromagnetic . | . . . Impact . | . . . Slashing . | . . . Piercing . | . . . Highest Corruption . | . . . Average Corruption . | . . . Corruption Purged . | . . . Corruption Blocked . | . . . Overload Shots . | . . . Overflow Damage 7 | . 7 . Projectiles 7 | . 7 . Explosions . | . . . Melee . | . . . Knockbacks 11 | . 9 2 Impact . | . . . Kinetic 11 | . 9 2 Secondary . | . . . Self-Inflicted Damage . | . . . Shots . | . . . Rammed 2 | . 2 . Targets Rammed 2 | . 2 . Kicked . | . . . Crushed . | . . . Highest Temperature 76 | 50 76 45 Average Temperature 22 | 23 21 26 Received Heat Transfer 171 | . 96 75 Siege Activations . | . . . Robots Corrupted . | . . . Combat Hostiles . | . . . Parts Fried . | . . . Impact Corruptions . | . . . Robots Melted . | . . . Combat Hostiles . | . . . Parts Melted . | . . . Heat Transferred 111 | 111 . . Parts Sabotaged . | . . . Parts Stolen . | . . . Parts Stripped . | . . . Power Chain Reactions . | . . . Alert | -11 -10 -10 ------- Run | Yrd Mat Min Peak Influence 240 | 10 240 239 Initial 39 | . 6 39 Average 91 | 1 86 135 Maximum Alert Level 1 | . 1 1 Low Security (%) 87 | 100 90 76 Level 1 12 | . 9 23 Level 2 . | . . . Level 3 . | . . . Level 4 . | . . . Level 5 . | . . . High Security . | . . . Max Security . | . . . Squads Dispatched 2 | . 2 . Investigation 1 | . 1 . Extermination . | . . . Reinforcement 1 | . 1 . Assault . | . . . Garrison . | . . . Intercept . | . . . Searches Triggered . | . . . Construction Impeded . | . . . Haulers Reinforced . | . . . Active Scanning Responses . | . . . Cargo Convoy Interrupts . | . . . Stealth | -11 -10 -10 --------- Run | Yrd Mat Min Distress Signals 1 | . 1 . Communications Jammed . | . . . Distress Signals . | . . . Times Spotted 36 | . 20 16 Peak Tracking Total 6 | . 4 6 Tactical Retreats 1 | . . 1 Traps | -11 -10 -10 ------- Run | Yrd Mat Min Traps Triggered 3 | . 3 . Indirectly . | . . . Trap Hack Attempts . | . . . Triggered . | . . . Disarmed . | . . . Reprogrammed . | . . . Reused . | . . . Traps Extracted . | . . . Installed . | . . . Triggered . | . . . Machines | -11 -10 -10 ---------- Run | Yrd Mat Min Machines Disabled . | . . . Max in Single Turn . | . . . Machines Repaired . | . . . Machines Dismantled . | . . . Machines Sabotaged . | . . . Overloaded Fab Kills . | . . . Hacking | -11 -10 -10 --------- Run | Yrd Mat Min Machines Accessed 5 | . 5 . Terminals 5 | . 5 . Fabricators . | . . . Repair Stations . | . . . Recycling Units . | . . . Scanalyzers . | . . . Garrison Access . | . . . Total Hacks 11 | . 11 . Successful 5 | . 5 . Failed 6 | . 6 . Catastrophic 1 | . 1 . Database Lockouts . | . . . Manual 11 | . 11 . Terminals 11 | . 11 . Fabricators . | . . . Repair Stations . | . . . Recycling Units . | . . . Scanalyzers . | . . . Garrison Access . | . . . Terminal Hacks 5 | . 5 . Record 1 | . 1 . Robot Analysis 3 | . 3 . Prototype ID Bank 1 | . 1 . Fabricator Hacks . | . . . Repair Station Hacks . | . . . Recycling Unit Hacks . | . . . Scanalyzer . | . . . Garrison Access Hacks . | . . . Unauthorized Hacks . | . . . Terminals . | . . . Fabricators . | . . . Repair Stations . | . . . Recycling Units . | . . . Scanalyzers . | . . . Garrison Access . | . . . Data Cores Recovered . | . . . Used . | . . . Hacking Detections 5 | . 5 . Full Trace Events . | . . . Feedback Events . | . . . Feedback Blocked . | . . . Robot Schematics Acquired . | . . . Robots Built . | . . . Authchips . | . . . Time . | . . . Total Robot Build Rating . | . . . Part Schematics Acquired . | . . . Parts Built . | . . . Authchips . | . . . Time . | . . . Total Part Build Rating . | . . . Parts Repaired . | . . . Time . | . . . Parts Recycled . | . . . Recycled Matter . | . . . Retrieved Matter . | . . . Retrieved Components . | . . . Parts Scanalyzed . | . . . Part Schematics Acquired . | . . . Parts Damaged . | . . . Bothacking | -11 -10 -10 ------------ Run | Yrd Mat Min Used RIF Installer . | . . . Robots Hacked . | . . . Non-combat . | . . . Combat . | . . . Robot Hacks Applied . | . . . Relay Couplers Released . | . . . Fabnet Peak Effective % . | . . . Robots Rewired . | . . . Allies Hacked . | . . . Hacks Repelled . | . . . Allies | -11 -10 -10 -------- Run | Yrd Mat Min Total Allies . | . . . Largest Group . | . . . Highest-Rated Group . | . . . Highest-Rated Ally . | . . . Total Orders . | . . . Ally Attacks . | . . . Total Damage . | . . . Kills . | . . . Allies Corrupted . | . . . Allies Melted . | . . . Intel | -11 -10 -10 ------- Run | Yrd Mat Min Robot Analysis Total 3 | . 3 . Derelict Logs Recovered . | . . . Drone Launches . | . . . Drone Recoveries . | . . . Exploration | -11 -10 -10 ------------- Run | Yrd Mat Min Turns Passed 1417 | 146 877 394 Spaces Moved 741 | 80 455 206 Core 7 | 7 . . Treads 734 | 73 455 206 Legs . | . . . Wheels . | . . . Hover . | . . . Flight . | . . . Fastest Speed 50 | 50 160 160 Average Speed 158 | 150 160 160 Slowest Speed 160 | 160 160 160 Overloaded Moves . | . . . Propulsion Burnouts . | . . . Robots Hopped . | . . . Cave-ins Triggered . | . . . Exploration Rate (%) 50 | 5 87 58 Regions Visited 2 Branch Regions 1 Pre-discovered Areas . | . . . Known Exits Taken . | . . . Unknown Exits Taken 2 | 1 1 . Scrap Searched . | . . . Spaces Dug . | . . . Terrain Destroyed 16 | . 16 . Melee . | . . . Projectile . | . . . AOE 16 | . 16 . Terrain Rammed . | . . . Walls Destroyed . | . . . Machines Disabled . | . . . Actions | -11 -10 -10 --------- Run | Yrd Mat Min Total 884 | 94 539 251 Wait 35 | . 21 14 Move 739 | 79 454 206 Hop . | . . . Pick Up 25 | 4 15 6 Fast Attach 6 | 6 . . Attach 1 | . 1 . Detach . | . . . Swap 11 | . 7 4 Drop 12 | . 3 9 Fire 53 | 5 36 12 Melee . | . . . Ram . | . . . Kick . | . . . Crush 2 | . 2 . Escape Stasis . | . . . Rewire . | . . . Trap . | . . . Miscellaneous . | . . . Route ------- -11/Scrapyard -10/Materials (discovered 4 exits: [*Mat x2] / [*Min x2]) -10/Mines (discovered 1 exit: [*Mat]) History --------- Turn | Location | Event 3 | -11/Scrapyard | Discovered new exit (range 14) 147 | -11/Scrapyard | Entered Materials 327 | -10/Materials | Discovered new exit (range 10) 334 | -10/Materials | Build established: Mutant 512 | -10/Materials | Discovered new exit (range 13) 657 | -10/Materials | Discovered new exit (range 4) 977 | -10/Materials | Discovered new exit (range 15) 1024 | -10/Materials | Entered Mines 1031 | -10/Mines | Joined a pair of Derelicts in attacking an 0b10 outpost 1311 | -10/Mines | Discovered new exit (range 6) 1326 | -10/Mines | Core integrity fell below 50% 1383 | -10/Mines | Assembled infested the area 1405 | -10/Mines | Core integrity fell below 20% 1418 | -10/Mines | Destroyed by D-53 Grenadier with Mini Grenade Launcher Last Messages --------------- 01383_ ALERT: Infestation in the mines, dispatching Demolisher response squad. 01397_ C-30 ARC bursts open, deploying its payload. 01397_ D-53 Grenadier unfolds itself. 01398_ as-84820 destroyed. 01399_ as-47459 destroyed. 01399_ as-99042 destroyed. 01399_ as-64291 destroyed. 01400_ as-86772 powers down. 01400_ as-86772 destroyed. 01403_ K-01 Serf collects debris. 01405_ Assault Rifle destroyed. 01409_ The unstable cave ceiling collapses. 01409_ K-01 Serf collects debris. 01410_ Imp. Ion Engine destroyed. 01413_ The unstable cave ceiling collapses. 01413_ K-01 Serf collects debris. 01414_ The unstable cave ceiling collapses. 01418_ K-01 Serf collects debris. Map ----- +----------------------------------------------------+ | ?????????????????????????????????????????????????? | | ?????????????????????????????????????????????????? | | ??????????????????????????????????????#??????????? | | ?????????????????????????????????????? ###???????? | | ??????????????????????????????????????# #???????? | | ???????????????????????????????######## ##??????? | | ???????????????????????????????# # # ##?????? | | ?????????????????????????????### #?????? | | ?????????????????????????????? #?????? | | ??????????????????????????????? #??????? | | ???????????????????????????????# #???????? | | ???????????????????????????????# ##?????## | | ??????????????????????????????## #????## | | ?????????????????????????????## #????# | | ?????????????????????????????# #???## | | ????????????????????????????## ##?## | | ??????????????????????????### ### | | ??????????????????????????# "%" | | ?????????????????????????## d " | | ????????????????????????## d | | ???????????????????????## # ##### # | | ??????????????????????## # ##???#### | | ??????????????????????# # # ##???????? | | ??????????????????????## # # ####????????? | | ????????????????# ## ##### #???????????? | | ????????????????# @ ##???# #?????????### | | ????????????????# #????# #????????## | | ????????????????## ###????# #????##### | | ?????????????????## ####??????? #?# | | ??????????????????# #??????????? #?# | | ??????????????????## #???????????? ?# ###### | | ???????????????????# ?????????????? ??????????## | | ??????????????????? ???????????????????????????## | | ??????????????????k ?????????????????????????????# | | ????????????????? ?????????????????????????????? | | ???????????????? ??????????????????????????????? | | ???????????????# ???????????????????????????????? | | ????????????????#??????????????????#########?????? | | ???????????????????????????????????# """ #?????? | | ?????????????????????????????#?????# """ #?????? | | ????????????????????????????? ?????# """ #?????? | | ????????????????????????????# ?????# #?####? | | ????????????????????????????# #????# ### ## | | ????????????????????????????# #????# ## # | | ????????????????????????????# #????# ## | | ????????????????????????????# #????# * ### | | ????????????????????????????# #????######=#### # | | ???????????????????????????## ##????????#[ *% ## | | ??????????????????????????## ##???????#!### #? | | ??????????????????????????# #########%#?# #? | +----------------------------------------------------+ Best States ------------- Heat Dissipation 25 Energy Generation 12 Energy Capacity 265 Matter Stores 300 Matter Capacity 300 Sight Range 16 Terrain Scan Density 10 Evasion (%) 40 Targeting Accuracy 5 Recoil Reduction 2 Item Schematics ----------------- None Robot Schematics ------------------ None Fabricated ------------ Nothing Alien Tech Used ----------------- None Achievements -------------- None Challenges ------------ None Game ------ Seed ElectronServoShockpuncher Manual? 0 Play Time 00:13:57 Cumulative 5.2 hours Start 2024.04.13 @ 20:53:51 End 2024.04.13 @ 21:07:08 Sessions 1 Manual Loads 0 Difficulty Rogue Special Mode None Game No. 14 Rogue 14 Adventurer 0 Explorer 0 Win Type - Total 0 Types 0/0/0/0/0/0/0/0/0 Lore% 15 Gallery% 7 Achievement% 11 Wizard Run 0 Options --------- Layout 1 ASCII 0 Keyboard 0 Movement Vi Keybinds 0 Fullscreen 2 Font 24/Smallcaps Map View 50x35 Zoom Use 0% Tactical HUD 1 Map Filters NONE Filters NONE Steam 1 RUN: 2c2f597b-1447-4d59-b580-4aabbde79945